bitfinex/quotes_ETHUSD_20220202
["timestamp","ask_amount","ask_price","bid_price","bid_amount"]
[1643837966066,0.1905,2624.9,2623.4,0.17347428]
[1643837966266,1.90607,2625.3,2625.2,4.64164423]
[1643837966471,0.1905,2625.9,2625.2,2.91919057]
[1643837966667,0.1904,2626.3,2625.2,3.09101099]
[1643837966867,0.448,2627.2,2625.2,3.09101099]
[1643837966868,0.1904,2626.9,2625.2,3.11193881]
[1643837967074,0.448,2627.2,2625.2,3.11193881]
[1643837967075,0.1902,2627.1,2625.3,0.1902]
[1643837967266,1.90488,2626.9,2625.3,0.1902]
[1643837967668,1.90488,2626.9,2626.8,2.8640238]
[1643837967865,1.03308,2626.9,2626.8,2.8640238]
[1643837968065,0.95222,2627.2,2626.8,2.8640238]
[1643837968266,1.90435,2628.3,2626.8,2.8640238]
[1643837968267,0.1496,2627.5,2626.8,2.8640238]
[1643837968468,0.56440222,2628.1,2626.8,2.8640238]
[1643837968469,0.1464,2627.6,2626.8,2.8640238]
[1643837968665,0.164,2627.9,2626.8,2.8640238]
[1643837968965,1.14223,2628.2,2626.9,5.83819997]
[1643837969168,1.91592738,2628.7,2627.0,0.13819997]
[1643837969169,0.01206738,2628.7,2627.0,0.13819997]
[1643837969367,0.01206738,2628.7,2627.1,0.19043]
[1643837969567,3.23996936,2629.3,2627.2,0.1902]
[1643837969817,0.1902,2629.5,2627.2,3.8609]
[1643837970018,0.01212937,2629.9,2627.5,0.01201086]
[1643837970221,0.1902,2629.8,2627.6,0.19]
[1643837970416,2.09248,2630.1,2627.6,0.21087182]
[1643837970614,1.61815,2629.9,2627.6,0.19]
[1643837970916,3.82816936,2629.8,2627.6,0.19]
[1643837971113,3.82816936,2629.8,2628.6,0.78731973]
[1643837971315,3.38016936,2629.8,2628.6,0.78731973]
[1643837971516,1.90284,2629.7,2628.6,0.78731973]
[1643837971813,0.19,2629.6,2628.6,0.78731973]
[1643837972014,0.19,2629.6,2627.4,0.1402]
[1643837972216,0.1801545,2629.5,2627.4,0.1402]
[1643837972417,0.00285884,2628.6,2627.4,0.1402]
[1643837972618,0.00285884,2628.6,2626.9,5.83819997]
[1643837972619,0.95173,2628.5,2626.9,1.11745297]
[1643837972816,0.00285884,2628.6,2626.9,1.11745297]
[1643837972817,0.00285884,2628.6,2626.9,2.11745297]
[1643837973017,0.00285884,2628.6,2628.1,0.68355578]
[1643837973215,0.00285884,2628.6,2627.0,0.01208199]
[1643837973669,0.00529709,2627.9,2627.0,0.01208199]
[1643837974266,0.00529709,2627.9,2627.0,0.03133562]
[1643837974467,0.00285884,2628.6,2627.0,0.03133562]
[1643837974468,0.00285884,2628.6,2627.1,1.14801218]
[1643837974668,0.00285884,2628.6,2628.0,0.7009791]
[1643837974971,0.00285884,2628.6,2626.9,1.11745297]
[1643837974972,7.31504022,2628.4,2626.9,1.11745297]
[1643837975369,5.0,2628.1,2626.9,0.979253]
[1643837975569,0.01242172,2628.2,2626.9,0.979253]
[1643837975570,2.02344,2628.0,2626.9,0.979253]
[1643837975770,2.40855,2628.0,2626.9,0.979253]
[1643837975970,0.3654,2627.9,2626.9,0.979253]
[1643837976166,0.367,2627.9,2626.9,0.979253]
[1643837976368,0.1712,2627.8,2626.9,0.979253]
[1643837976666,0.1902,2627.7,2626.9,0.979253]
[1643837976866,0.1656,2627.7,2626.9,0.979253]
[1643837977066,0.1902,2627.9,2626.9,0.979253]
[1643837977067,0.1544,2627.6,2626.9,0.979253]
[1643837977351,0.156,2627.6,2626.9,0.979253]
[1643837977547,0.152,2627.5,2626.9,0.979253]
[1643837977752,0.1902,2627.7,2627.1,0.9056873]
[1643837977753,0.3622,2627.7,2627.1,0.9056873]
[1643837977948,0.1456,2627.5,2627.1,0.9056873]
[1643837978148,0.1488,2627.6,2627.1,0.9056873]
[1643837978348,0.17013602,2627.8,2627.1,0.9056873]
[1643837978548,0.00530485,2627.5,2627.1,0.9056873]
[1643837978751,0.00530485,2627.5,2627.1,0.92547517]
[1643837978953,0.00530485,2627.5,2627.1,0.9056873]
[1643837979451,0.00293602,2627.8,2627.1,0.9056873]
[1643837979652,0.0053049,2627.4,2627.1,0.9056873]
[1643837980654,0.00293602,2627.8,2627.1,0.82613312]
[1643837980853,4.92e-06,2627.4,2627.1,0.82613312]
[1643837981071,4.92e-06,2627.4,2627.0,0.37189081]
[1643837981271,4.92e-06,2627.4,2627.0,0.18169081]
[1643837981770,4.094e-05,2627.8,2627.3,0.01246851]
[1643837981969,4.094e-05,2627.8,2627.3,0.03461396]
[1643837982167,0.1792,2628.5,2627.3,0.03461396]
[1643837982168,0.18372129,2628.5,2627.3,0.03461396]
[1643837982368,0.1768,2628.4,2627.4,0.15923762]
[1643837982570,0.00292129,2628.5,2627.4,0.34943762]
[1643837982571,2.129e-05,2628.5,2627.4,0.34943762]
[1643837982775,2.129e-05,2628.5,2628.0,0.0127937]
[1643837982969,0.1902,2629.4,2628.0,0.0127937]
[1643837982970,0.1902,2629.9,2628.1,5.7]
[1643837983168,6.3998,2630.6,2628.1,5.7]
[1643837983169,0.1902,2630.3,2629.6,0.81259703]
[1643837983368,2.55465412,2630.6,2628.1,5.91685696]
[1643837983369,0.01574313,2629.2,2628.1,5.91685696]
[1643837983571,0.01574313,2629.2,2628.2,0.22100537]
[1643837983572,4.313e-05,2629.2,2628.2,0.22100537]
[1643837983773,4.313e-05,2629.2,2628.0,0.0127937]
[1643837983973,4.313e-05,2629.2,2627.4,0.1902]
[1643837983974,1.0,2628.7,2627.4,0.1902]
[1643837984172,5.53959392,2628.6,2626.0,1.2192]
[1643837984373,0.88978049,2628.3,2627.4,0.67847665]
[1643837984569,0.88978049,2628.3,2626.0,1.2192]
[1643837984570,0.90749764,2628.3,2626.1,0.1902]
[1643837984817,0.1902,2628.2,2627.3,0.21711852]
[1643837985217,0.1902,2628.4,2627.3,0.21711852]
[1643837985422,3.44701696,2629.1,2627.3,1.05141852]
[1643837985618,0.1902,2628.8,2627.3,1.05141852]
[1643837985820,3.44701696,2629.3,2628.5,0.87792015]
[1643837986116,3.44701696,2629.3,2627.6,0.00140807]
[1643837986321,5.7,2628.1,2627.5,0.1902]
[1643837986519,1.90472,2627.3,2626.2,0.1902]
[1643837986720,1.90472,2627.3,2625.8,0.00096]
[1643837986721,5.0,2626.7,2625.8,0.00096]
[1643837986923,5.0,2626.7,2624.5,3.491]
[1643837986924,1.61815,2626.4,2624.4,0.1903]
[1643837987121,0.79280664,2625.7,2625.5,0.00096]
[1643837987321,0.79280664,2625.7,2623.5,0.01291564]
[1643837987322,0.95325,2625.0,2622.6,0.01]
[1643837987531,0.95325,2625.0,2622.2,0.13138]
[1643837987532,1.9073275,2624.2,2622.8,0.01204291]
[1643837987722,1.9073275,2624.2,2622.9,0.00096]
[1643837987723,1.61815,2623.8,2622.9,0.00096]
[1643837987926,7.99415899,2623.8,2621.8,3.922]
[1643837988121,7.99415899,2623.8,2622.5,0.00096]
[1643837988122,3.44731696,2623.7,2622.5,0.00096]
[1643837988320,1.0,2623.6,2622.5,0.00096]
[1643837988567,1.0,2623.6,2622.2,0.13138]
[1643837988568,0.95376,2623.0,2622.2,0.13138]
[1643837988765,0.95376,2623.0,2622.3,0.20556298]
[1643837988766,0.97124663,2623.0,2622.3,0.20556298]
[1643837988971,3.81526,2622.9,2621.4,0.01236271]
[1643837989168,3.81526,2622.9,2621.9,0.00096]
[1643837989169,5.43471,2622.7,2621.9,0.00096]
[1643837989467,5.43471,2622.7,2620.2,3.74970096]
[1643837989468,4.2,2622.5,2620.7,0.01]
[1643837989665,2.86213,2621.9,2620.7,0.14915997]
[1643837989867,4.77027,2621.9,2620.8,0.04035807]
[1643837990067,1.41449844,2622.6,2620.9,5.7]
[1643837990270,4.03148,2623.2,2623.0,0.17686397]
[1643837990271,3.81639,2623.2,2623.0,0.17686397]
[1643837990473,3.81639,2623.2,2621.2,0.01233778]
[1643837990673,1.29873,2623.1,2621.6,0.00147545]
[1643837990870,4.69342752,2623.1,2621.6,0.00147545]
[1643837991069,0.89629101,2621.7,2621.6,0.00147545]
[1643837991276,2.15,2621.6,2621.2,0.02803776]
[1643837991476,2.15,2621.6,2620.2,0.02030096]
[1643837991477,0.15808044,2621.3,2619.2,0.71827478]
[1643837991671,21.79820116,2621.2,2620.0,4.96336378]
[1643837991869,21.79820116,2621.2,2618.2,0.05095536]
[1643837991870,1.91005,2619.9,2618.2,0.05095536]
[1643837992066,1.91005,2619.9,2617.5,4.6]
[1643837992067,1.91005,2619.9,2618.0,6.3664422]
[1643837992318,3.24481238,2619.8,2618.6,0.70813333]
[1643837992519,0.01268776,2620.0,2619.5,2.5]
[1643837992719,2.86508,2620.4,2619.5,2.5]
[1643837992922,3.24481238,2620.8,2619.6,0.2018809]
[1643837993120,0.1907,2621.0,2619.6,0.2018809]
[1643837993319,3.24481238,2621.2,2619.6,0.2018809]
[1643837993320,0.1907,2621.2,2619.6,0.2018809]
[1643837993519,0.62889997,2621.3,2619.7,0.00096]
[1643837993719,0.62889997,2621.3,2619.7,0.19139]
[1643837993720,2.86428,2621.2,2619.7,0.19139]
[1643837993919,2.86428,2621.2,2620.6,0.20805529]
[1643837994321,1.40251,2621.9,2620.6,0.20805529]
[1643837994322,1.9087,2621.9,2620.6,0.20805529]
[1643837994523,0.01205298,2622.3,2620.6,0.20805529]
[1643837994722,0.01205298,2622.3,2621.3,0.9000817]
[1643837994924,0.20275298,2622.3,2621.3,0.9000817]
[1643837995121,0.96615298,2622.3,2621.8,0.20903543]
[1643837995322,0.96615298,2622.3,2621.8,0.16923543]
[1643837995522,0.01205298,2622.3,2621.3,0.9200817]
[1643837995827,0.00540856,2621.9,2621.3,0.9000817]
[1643837996071,0.00540856,2621.9,2621.5,0.17690427]
[1643837996270,0.00540856,2621.9,2621.3,0.9000817]
[1643837996271,0.95953856,2621.9,2621.3,0.9000817]
[1643837996470,0.95413,2621.9,2621.3,0.9000817]
[1643837996871,3.05286,2622.6,2621.3,1.90008169]
[1643837997072,0.69540621,2622.5,2621.6,0.01275061]
[1643837997273,2.72244621,2622.5,2621.6,0.01275061]
[1643837997474,2.72244621,2622.5,2621.4,0.00096]
[1643837997475,0.02057495,2622.3,2621.4,0.00096]
[1643837997671,0.02057495,2622.3,2619.9,0.02]
[1643837997672,1.04067,2622.2,2619.7,0.19024]
[1643837997873,4.48775194,2622.2,2620.5,0.00096]
[1643837998078,0.19067,2622.2,2620.5,0.00096]
[1643837998377,0.01297282,2621.5,2621.1,0.15963085]
[1643837998573,0.19067,2621.8,2621.1,0.15963085]
[1643837998772,0.19067,2622.1,2621.1,0.15963085]
[1643837998972,0.19067,2622.1,2621.2,0.00096]
[1643837999173,0.1456,2622.4,2621.2,0.00096]
[1643837999174,0.01294789,2621.7,2621.2,0.00096]
[1643837999475,0.20303329,2622.8,2621.2,0.44896]
[1643837999738,0.19067,2622.6,2621.2,0.448]
[1643837999933,0.01236329,2622.8,2621.3,0.1906]
[1643838000134,0.20303329,2622.8,2622.4,0.95371126]
[1643838000335,0.01236329,2622.8,2622.4,0.95371126]
[1643838000535,0.19067,2623.2,2622.4,0.95371126]
[1643838000536,0.3353,2623.4,2622.5,0.21935849]
[1643838000747,2.99949997,2623.5,2622.4,0.95371126]
[1643838000748,3.14749997,2623.5,2622.4,0.95371126]
[1643838000945,2.99949997,2623.5,2622.4,0.85371126]
[1643838001137,2.99949997,2623.5,2622.0,0.00096]
[1643838001138,1.42644997,2623.4,2622.0,0.00096]
[1643838001338,0.02471721,2622.9,2622.0,0.00096]
[1643838001538,0.19067,2622.8,2622.0,0.00096]
[1643838001937,0.1947706,2623.1,2622.7,5.05916493]
[1643838002137,0.0041006,2623.1,2622.7,5.05916493]
[1643838002536,0.19067,2623.2,2622.7,5.05916493]
[1643838002737,0.13819997,2623.4,2622.7,5.05916493]
[1643838002938,0.0041006,2623.0,2622.8,0.16194213]
[1643838003760,0.28139997,2623.4,2622.8,0.16194213]
[1643838003966,0.0041006,2623.0,2622.8,0.16194213]
[1643838004362,0.30339993,2623.4,2622.9,0.93208862]
[1643838004566,0.01639996,2623.4,2622.9,0.93208862]
[1643838004961,0.10459993,2623.5,2623.0,4.0]
[1643838005160,0.1512,2623.7,2623.0,4.0]
[1643838005161,0.1552,2623.7,2623.0,4.0]
[1643838005363,0.1447706,2623.8,2622.8,0.16194213]
[1643838005364,0.2983706,2623.6,2622.8,0.16194213]
[1643838005564,0.2983706,2623.6,2622.0,0.00096]
[1643838005565,0.02375032,2623.4,2622.0,0.00096]
[1643838005763,0.95361,2623.3,2621.8,0.00096]
[1643838005964,0.1448,2623.5,2621.9,1.20292109]
[1643838006168,0.1447706,2623.8,2622.0,0.1912]
[1643838006363,1.02260453,2623.8,2622.8,0.80660864]
[1643838006564,0.1447706,2623.8,2622.9,0.20068012]
[1643838006763,7.06e-05,2623.8,2622.9,0.20068012]
[1643838006968,6.67396,2625.2,2623.1,0.01274277]
[1643838006969,0.1905,2624.7,2623.1,0.01274277]
[1643838007232,0.1905,2624.8,2623.2,1.82873999]
[1643838007430,3.41261568,2625.6,2623.8,0.0127694]
[1643838007625,3.41261568,2625.6,2623.9,1.03536846]
[1643838007626,3.428e-05,2624.2,2623.9,1.03536846]
[1643838007827,3.22211568,2625.6,2624.1,0.19660189]
[1643838008023,0.01217995,2626.5,2624.6,0.01262898]
[1643838008224,2.09564,2626.4,2624.2,0.448]
[1643838008422,2.09564,2626.4,2624.3,0.00096]
[1643838008423,3.22211568,2626.3,2624.3,0.00096]
[1643838008626,0.1904,2626.2,2625.9,0.19486885]
[1643838008829,0.58460655,2624.7,2624.3,0.00096]
[1643838009022,3.23085343,2626.1,2624.3,5.7]
[1643838009224,1.10917,2626.0,2624.3,5.7]
[1643838009423,1.29957,2626.0,2624.3,5.89024]
[1643838009624,1.29957,2626.0,2625.7,0.71942788]
[1643838009823,0.1904,2626.3,2625.8,0.2229499]
[1643838010022,1.05711993,2626.5,2625.8,0.2229499]
[1643838010624,0.95711993,2626.5,2625.8,0.2229499]
[1643838011067,0.95711993,2626.5,2624.7,0.1904]
[1643838011068,3.39167124,2626.4,2624.7,0.1904]
[1643838011270,0.81431578,2626.0,2625.0,0.8711393]
[1643838011578,3.73967124,2626.4,2624.1,0.00096]
[1643838011579,0.02981769,2625.8,2624.1,0.19136]
[1643838011769,0.01226191,2625.8,2624.1,0.1904]
[1643838011968,0.1904,2626.3,2624.6,0.01269122]
[1643838012167,0.10459993,2626.5,2624.6,0.01269122]
[1643838012168,0.1904,2626.4,2624.6,0.01269122]
[1643838012367,0.29499993,2626.5,2624.7,0.1904]
[1643838012570,9.681e-05,2625.1,2624.7,0.1904]
[1643838012867,9.681e-05,2625.1,2624.8,0.16310589]
[1643838013068,9.681e-05,2625.1,2625.0,0.19024]
[1643838013273,0.13819997,2626.6,2625.1,5.7]
[1643838013471,0.13819997,2626.6,2625.2,5.54019959]
[1643838013667,0.13819997,2626.6,2625.2,7.15019959]
[1643838013871,0.2004,2627.3,2625.4,0.99999999]
[1643838014076,0.2002,2627.5,2625.7,0.01294084]
[1643838014271,0.1902,2627.8,2625.8,0.63824]
[1643838014471,0.01232095,2628.2,2625.9,5.79079925]
[1643838014718,0.01,2628.4,2625.9,5.79079925]
[1643838014719,0.2002,2628.4,2626.4,0.01279042]
[1643838014917,0.2002,2628.4,2627.6,0.81728932]
[1643838014918,0.04149492,2628.1,2627.6,0.81728932]
[1643838015119,0.04263176,2628.3,2627.7,0.17111963]
[1643838015318,0.04092649,2628.0,2627.7,0.17111963]
[1643838015517,0.04206334,2628.2,2627.7,0.17111963]
[1643838015719,0.33839997,2628.4,2627.7,0.17111963]
[1643838015720,0.04035807,2627.9,2627.7,0.17111963]
[1643838015918,0.04263176,2628.3,2627.7,0.17111963]
[1643838016217,0.04206334,2628.2,2627.7,0.17111963]
[1643838016417,0.04206334,2628.2,2627.0,0.2002]
[1643838016622,0.04263176,2628.3,2626.9,3.9777]
[1643838016820,1.5,2627.6,2626.9,3.9777]
[1643838017019,0.01,2627.5,2626.9,0.01]
[1643838017219,0.01,2627.5,2626.5,0.03360003]
[1643838017419,0.01,2627.5,2626.9,0.74444428]
[1643838017618,0.01,2627.5,2626.5,0.03360003]
[1643838017619,0.2002,2627.5,2626.5,0.03360003]
[1643838017834,0.01,2627.5,2626.9,0.16947159]
[1643838018217,1.01,2627.6,2626.9,0.16947159]
[1643838018469,0.00540016,2627.3,2626.5,0.03360003]
[1643838018674,0.00540016,2627.3,2626.7,0.86041192]
[1643838019476,0.95197,2627.9,2626.8,5.92076485]
[1643838019674,0.04206334,2628.2,2626.8,5.92076485]
[1643838019675,2.7e-07,2627.1,2627.0,0.01285764]
[1643838019871,9.81e-05,2627.5,2627.0,0.01285764]
[1643838020670,0.04092649,2628.0,2627.0,0.01285764]
[1643838020872,0.04092649,2628.0,2627.1,0.68852566]
[1643838021072,0.04035807,2627.9,2627.2,0.16991868]
[1643838021283,0.1902,2628.9,2627.3,5.7]
[1643838021481,6.5949,2629.8,2627.3,5.7]
[1643838021482,0.1902,2629.2,2627.7,0.01263532]
[1643838021675,6.60716808,2629.8,2627.8,1.83784167]
[1643838021676,6.7851,2629.8,2627.8,1.83784167]
[1643838021876,6.5949,2629.8,2628.4,0.01244449]
[1643838022222,6.5949,2629.8,2628.6,0.1652684]
[1643838022521,0.01608549,2629.0,2628.6,0.1652684]
[1643838022917,0.19,2630.1,2628.8,5.7]
[1643838023114,0.19,2630.1,2628.8,5.70743784]
[1643838023315,0.19,2630.1,2628.9,1.0]
[1643838023517,5.7424,2630.2,2628.9,0.99243548]
[1643838023715,5.7424,2630.2,2629.0,5.58832283]
[1643838023918,5.7424,2630.2,2630.1,3.87103372]
[1643838024114,5.7424,2630.2,2630.1,1.29165202]
[1643838024715,5.7024,2630.2,2630.1,1.29165202]
[1643838024922,5.4424,2630.2,2630.1,4.14754783]
[1643838025116,5.2624,2630.2,2630.1,5.01799026]
[1643838025315,0.73164,2630.3,2630.2,0.4304]
[1643838025517,0.88164,2631.4,2630.2,0.4304]
[1643838025718,1.76328,2631.4,2630.2,1.4304]
[1643838025963,1.76328,2631.4,2631.3,0.19650533]
[1643838026164,1.76328,2631.4,2630.2,1.4304]
[1643838026366,0.19,2632.2,2630.2,1.7304]
[1643838026567,0.2427999,2632.3,2630.3,3.97732892]
[1643838026767,0.2427999,2632.3,2630.3,1.13624039]
[1643838026965,0.2427999,2632.3,2630.4,1.0]
[1643838027171,0.00541638,2631.3,2630.5,0.638]
[1643838027465,0.01987853,2632.3,2630.6,6.05286444]
[1643838027665,0.01987853,2632.3,2632.0,0.90591444]
[1643838028068,0.1899,2633.2,2632.0,0.90591444]
[1643838028267,0.1899,2633.4,2632.0,0.90591444]
[1643838028468,0.53955633,2633.4,2632.5,0.21647535]
[1643838028669,0.53955633,2633.4,2632.0,0.90591444]
[1643838028670,0.73294932,2632.9,2632.0,0.90591444]
[1643838028868,0.73294932,2632.9,2631.0,3.33932892]
[1643838028869,2.5,2632.7,2631.1,0.18729943]
[1643838029173,0.1899,2632.8,2632.1,0.90037023]
[1643838029468,5.71661739,2634.0,2631.0,3.33932892]
[1643838029469,0.1899,2633.3,2631.0,3.33932892]
[1643838029721,0.1496,2633.6,2631.0,3.33932892]
[1643838029722,0.1899,2632.7,2631.1,4.87358566]
[1643838029918,0.95006,2633.3,2631.2,0.19024]
[1643838030121,0.00275972,2633.8,2633.1,0.19662258]
[1643838030122,0.1899,2633.5,2633.1,0.19662258]
[1643838030321,2.85033,2633.9,2631.8,0.448]
[1643838030322,0.1899,2633.3,2631.8,0.448]
[1643838030522,0.1899,2633.3,2631.7,0.9291]
[1643838030523,0.1899,2633.7,2632.4,1.0449]
[1643838030723,0.1899,2633.8,2632.4,1.0449]
[1643838030921,3.60367711,2634.0,2632.4,1.0449]
[1643838030922,0.1897,2633.9,2632.4,1.0449]
[1643838031122,3.60367711,2634.0,2632.5,0.19024]
[1643838031123,3.79337711,2634.0,2632.5,0.19024]
[1643838031320,3.79337711,2634.0,2632.4,1.6449]
[1643838031321,3.79337711,2634.0,2633.8,0.1670789]
[1643838031523,3.29061739,2634.0,2633.8,0.1670789]
[1643838031722,3.29061739,2634.0,2632.4,0.19024]
[1643838031723,3.10091739,2634.0,2632.6,0.19024]
[1643838031924,3.10091739,2634.0,2632.3,0.25652141]
[1643838031925,0.00398638,2633.4,2632.3,0.44622141]
[1643838032128,0.00398638,2633.4,2631.6,0.1897]
[1643838032325,0.1899,2633.3,2631.6,1.0]
[1643838032523,0.1899,2633.3,2631.5,0.11832144]
[1643838032724,0.00398638,2633.4,2632.8,0.86278357]
[1643838032923,0.19388638,2633.4,2632.8,0.86278357]
[1643838033122,0.19388638,2633.4,2632.8,1.67908357]
[1643838033123,0.01488883,2633.0,2632.8,1.67908357]
[1643838033322,0.01488883,2633.0,2632.8,1.97908357]
[1643838033588,0.01488883,2633.0,2632.8,1.67908357]
[1643838033788,3.06856594,2634.0,2632.8,2.67908357]
[1643838033989,3.06856594,2634.0,2633.7,0.20276863]
[1643838034385,3.06856594,2634.0,2632.8,0.13819997]
[1643838034786,3.07935329,2634.0,2632.8,0.13819997]
[1643838034989,3.07935329,2634.0,2632.8,2.94744997]
[1643838034990,3.06856594,2634.0,2632.8,2.94744997]
[1643838035185,3.06856594,2634.0,2632.8,3.20520997]
[1643838035386,3.06856594,2634.0,2633.5,0.1643426]
[1643838035986,6.594e-05,2634.0,2633.5,0.1643426]
[1643838036388,0.1897,2635.4,2633.7,5.7]
[1643838036588,0.1897,2635.9,2633.8,0.30856144]
[1643838036789,0.04149491,2635.2,2633.9,0.448]
[1643838036990,0.04149491,2635.2,2634.0,0.37994]
[1643838037219,58.673858,2636.0,2634.1,0.448]
[1643838037220,0.04092649,2635.1,2634.1,0.448]
[1643838037419,0.04092649,2635.1,2635.0,5.89143642]
[1643838037627,59.58918673,2636.0,2635.1,0.76605241]
[1643838038020,0.04547388,2635.9,2634.5,0.448]
[1643838038221,0.04547388,2635.9,2634.1,0.1897]
[1643838038222,5.30257368,2635.9,2634.1,0.1897]
[1643838038419,0.15809985,2635.8,2634.1,0.1897]
[1643838038620,0.1897,2635.7,2634.1,0.1897]
[1643838038823,0.18959061,2634.7,2634.1,0.1897]
[1643838039021,5.8897,2634.6,2633.0,1.1502]
[1643838039227,5.8897,2634.6,2632.9,0.90248918]
[1643838039228,5.90994456,2634.6,2632.9,0.90248918]
[1643838039420,5.90994456,2634.6,2632.9,2.62395918]
[1643838039621,3.2518998,2634.5,2633.0,1.7214]
[1643838039821,0.00874148,2634.4,2633.0,1.7214]
[1643838040020,0.90784175,2634.5,2633.8,0.94295209]
[1643838040224,0.90784175,2634.5,2633.9,1.72081]
[1643838040422,0.02185186,2634.3,2633.9,2.61791]
[1643838040822,0.02185186,2634.3,2633.9,2.51209451]
[1643838040823,0.1897,2634.2,2633.9,2.51209451]
[1643838041069,0.02185186,2634.3,2633.9,2.51209451]
[1643838041269,0.1897,2634.2,2633.9,2.51209451]
[1643838041470,0.00546361,2634.2,2633.9,2.51209451]
[1643838041867,0.00546361,2634.2,2634.0,0.18288922]
[1643838042469,0.00383443,2634.5,2634.0,0.18288922]
[1643838042670,0.00546358,2634.2,2634.0,0.18288922]
[1643838043569,0.01987852,2634.7,2634.0,0.18288922]
[1643838043570,0.00102758,2634.7,2634.0,0.18288922]
[1643838043769,0.00395827,2634.2,2634.0,0.18288922]
[1643838044714,0.00102758,2634.7,2634.1,0.89893369]
[1643838045519,0.1897,2635.1,2634.1,0.89893369]
[1643838045715,0.1897,2635.5,2634.1,0.89893369]
[1643838045915,0.04035807,2635.0,2634.8,0.7432178]
[1643838046215,0.1897,2635.5,2634.0,0.18288922]
[1643838046216,0.00393622,2634.9,2634.0,0.18288922]
[1643838046615,0.00393622,2634.9,2634.5,0.17407883]
[1643838047018,0.00393622,2634.9,2633.5,0.37994]
[1643838047319,0.01204136,2635.3,2633.5,0.1897]
[1643838047518,0.00546889,2634.8,2634.5,0.00512325]
[1643838047718,2.75,2634.7,2633.1,2.3907]
[1643838047920,0.00546889,2634.8,2634.6,0.95088338]
[1643838048128,0.00546889,2634.8,2633.3,0.19024]
[1643838048319,0.00546889,2634.8,2633.3,0.1897]
[1643838048567,0.01182493,2635.1,2633.3,0.1897]
[1643838048767,3.06311162,2635.1,2633.3,0.1897]
[1643838048964,5.7210324,2634.9,2632.9,0.81791685]
[1643838049166,3.07509413,2634.8,2633.7,0.68456788]
[1643838049766,3.55926586,2634.8,2633.7,0.68456788]
[1643838049966,0.19244127,2634.8,2633.7,0.68456788]
[1643838050270,0.19244127,2634.8,2634.7,0.88072985]
[1643838050271,0.1897,2634.8,2634.7,0.88072985]
[1643838050470,0.04035807,2635.0,2634.7,0.88072985]
[1643838050968,0.04035807,2635.0,2633.8,0.448]
[1643838051169,0.04035807,2635.0,2633.1,2.95084]
[1643838051170,0.04429404,2635.0,2633.1,2.95084]
[1643838051369,0.05433178,2635.0,2634.5,0.1952506]
[1643838051568,0.04429404,2635.0,2633.1,2.3126]
[1643838051770,0.04429404,2635.0,2632.4,0.448]
[1643838051771,0.06533822,2635.0,2632.4,0.448]
[1643838051967,1.0,2634.8,2632.2,2.4438]
[1643838052226,0.73268781,2634.1,2632.2,2.4438]
[1643838052424,1.02012442,2634.1,2633.9,0.00511151]
[1643838052623,5.8397,2634.0,2633.9,0.00511151]
[1643838053221,5.8397,2634.0,2633.6,0.1601887]
[1643838053425,5.8533408,2634.0,2633.6,0.1601887]
[1643838053623,5.8533408,2634.0,2631.4,2.7214]
[1643838053624,5.83819997,2633.9,2631.4,2.7214]
[1643838053824,5.83819997,2633.9,2632.0,0.70938217]
[1643838053825,0.86603431,2632.7,2632.0,0.70938217]
[1643838054024,0.86603431,2632.7,2630.8,0.19024]
[1643838054025,0.88299446,2632.7,2630.8,0.19024]
[1643838054224,0.88299446,2632.7,2630.7,0.13717238]
[1643838054423,3.04600834,2632.6,2630.7,0.13717238]
[1643838054624,3.04600834,2632.6,2631.9,0.22460129]
[1643838054823,0.00992202,2632.6,2631.9,0.22460129]
[1643838055024,0.86603431,2632.7,2630.7,0.32741238]
[1643838055226,4.23590834,2632.6,2630.7,0.13717238]
[1643838055429,2.8115,2632.5,2630.1,3.6121]
[1643838055623,2.8115,2632.5,2629.5,0.19024]
[1643838055624,1.01993963,2632.3,2629.5,0.19024]
[1643838055824,1.01993963,2632.3,2629.4,2.4179]
[1643838055825,2.8115,2631.7,2629.4,1.2414]
[1643838056072,2.8115,2631.7,2630.2,0.21779755]
[1643838056073,0.72663899,2630.6,2630.2,0.21779755]
[1643838056267,0.19,2631.0,2630.2,0.21779755]
[1643838056467,0.00888514,2631.0,2630.2,0.21779755]
[1643838056665,3.49049686,2631.9,2630.2,0.21779755]
[1643838056666,3.23249686,2631.9,2630.2,0.21779755]
[1643838056869,5.3,2632.7,2630.2,0.21779755]
[1643838056870,3.23249686,2632.3,2630.2,0.21779755]
[1643838057067,3.53249686,2632.3,2630.2,0.21779755]
[1643838057266,3.53249686,2632.3,2630.5,0.00510542]
[1643838057267,0.66863094,2632.0,2630.5,0.00510542]
[1643838058168,0.66863094,2632.0,2630.2,0.448]
[1643838058368,0.66863094,2632.0,2631.1,0.77998811]
[1643838058570,0.66863094,2632.0,2631.1,0.00510416]
[1643838058769,0.1432,2631.9,2631.1,0.00510416]
[1643838058968,0.148,2631.9,2631.1,0.00510416]
[1643838059168,1.15863094,2632.0,2631.1,0.00510416]
[1643838059367,1.15863094,2632.0,2630.0,3.7376]
[1643838059568,0.8356755,2631.5,2630.8,0.88423392]
[1643838059837,1.18070669,2632.0,2630.8,0.88423392]
[1643838059838,0.3324,2632.0,2630.8,0.88423392]
[1643838060039,0.19,2632.0,2630.8,0.88423392]
[1643838060436,0.3324,2632.0,2630.8,0.88423392]
[1643838060637,0.19,2632.0,2630.8,0.88423392]
[1643838060838,0.74385877,2631.7,2630.9,0.19411409]
[1643838061038,0.74385877,2631.7,2630.1,5.22769195]
[1643838061240,0.74385877,2631.7,2630.0,4.1856]
[1643838061638,0.74385877,2631.7,2630.1,1.0]
[1643838061838,0.74385877,2631.7,2630.2,0.19]
[1643838062038,0.74385877,2631.7,2630.8,0.21690746]
[1643838062439,0.19,2632.0,2630.8,0.21690746]
[1643838062640,0.00102759,2632.1,2630.8,0.21690746]
[1643838062840,0.00102759,2632.1,2630.8,0.22630914]
[1643838063140,0.19,2632.7,2630.9,0.63824]
[1643838063340,1.90044,2633.5,2631.4,0.17976692]
[1643838063341,0.19,2633.2,2631.4,0.17976692]
[1643838063573,0.1899,2633.4,2631.5,0.83377256]
[1643838063778,0.1432,2634.3,2632.0,5.599]
[1643838063779,1.13981,2634.1,2632.0,5.599]
[1643838063972,0.00274094,2634.9,2632.1,4.56466]
[1643838063973,0.1899,2634.2,2632.1,4.56466]
[1643838064169,0.1600997,2634.9,2632.2,0.13717238]